bitfinex-derivatives/quotes_SOLF0:USTF0_20260316
["timestamp","ask_amount","ask_price","bid_price","bid_amount"]
[1773702212657,3.80967826,96.08,96.038,6.01003426]
[1773702214048,3.80967826,96.09,96.038,6.01003426]
[1773702214652,3.80967826,96.1,96.041,5.99199929]
[1773702215457,3.80967826,96.11,96.051,6.00954826]
[1773702218650,3.80967826,96.1,96.051,6.00954826]
[1773702219657,3.80967826,96.09,96.051,6.00954826]
[1773702220455,3.80967826,96.1,96.051,6.00954826]
[1773702220758,3.80967826,96.09,96.051,6.00954826]
[1773702220950,3.80967826,96.1,96.051,6.00954826]
[1773702221149,32.72,96.142,96.051,6.00954826]
[1773702221150,3.80967826,96.11,96.051,6.00954826]
[1773702222553,32.72,96.142,96.051,6.00954826]
[1773702222759,18.717,96.165,96.071,5.94442303]
[1773702222960,3.80967826,96.13,96.071,5.94442303]
[1773702223354,3.80967826,96.13,96.07,3.80967826]
[1773702224451,3.80967826,96.13,96.06,3.80967826]
[1773702224652,7.37559582,96.13,96.06,3.80967826]
[1773702224856,7.37559582,96.13,96.07,3.80967826]
[1773702225258,7.37559582,96.13,96.071,4.91025841]
[1773702227759,3.54217259,96.129,96.071,4.91025841]
[1773702228863,3.80967826,96.14,96.081,4.91025841]
[1773702229560,3.52273921,96.144,96.081,4.91025841]
[1773702229865,3.80967826,96.14,96.081,4.91025841]
[1773702231663,3.80967826,96.15,96.091,4.91025841]
[1773702231862,3.63861294,96.159,96.101,4.91025841]
[1773702234476,3.35745148,96.149,96.101,4.91025841]
[1773702234774,3.35745148,96.149,96.081,4.70169954]
[1773702235576,3.35745148,96.149,96.091,4.70169954]
[1773702237066,3.80888714,96.13,96.076,4.60940808]
[1773702237269,3.80888714,96.11,96.051,4.60940808]
[1773702237567,3.80888714,96.11,96.061,4.60940808]
[1773702237973,3.80888714,96.11,96.014,18.746]
[1773702237974,104.082,96.073,95.823,25.85225386]
[1773702238270,104.051,96.102,95.798,104.38]
[1773702238271,104.116,96.042,95.824,63.87]
[1773702238475,104.087,96.069,95.91,3.80888714]
[1773702238476,3.80888714,95.98,95.91,3.80888714]
[1773702238977,2.083,95.969,95.9,32.72]
[1773702239670,2.083,95.969,95.87,9.10179842]
[1773702239876,2.083,95.969,95.872,10.64632491]
[1773702240275,2.083,95.969,95.874,10.64632491]
[1773702240975,9.23228555,96.009,95.873,32.72]
[1773702240976,9.23228555,96.009,95.911,10.621407]
[1773702241178,9.23228555,96.037,95.911,10.621407]
[1773702241374,9.23228555,96.039,95.913,10.621407]
[1773702241578,9.23228555,96.038,95.913,10.621407]
[1773702241780,9.10179842,96.04,95.913,10.621407]
[1773702241979,10.39,96.039,95.913,10.621407]
[1773702242473,9.10179842,96.04,95.913,10.621407]
[1773702242474,2.082,96.015,95.913,10.621407]
[1773702242681,2.082,96.015,95.931,10.57523169]
[1773702243076,2.082,96.015,95.933,10.50833221]
[1773702244178,2.082,96.015,95.935,10.43409037]
[1773702244680,2.083,96.001,95.937,10.43409037]
[1773702245284,2.082,96.013,95.937,10.43409037]
[1773702246581,2.083,96.002,95.937,10.43409037]
[1773702246784,9.10179842,96.03,95.937,10.43409037]
[1773702248684,2.082,96.014,95.937,10.43409037]
[1773702249382,2.082,96.014,95.939,10.43929828]
[1773702249584,2.082,96.014,95.941,10.43929828]
[1773702249784,2.082,96.014,95.943,10.43929828]
[1773702249977,2.082,96.014,95.942,32.74]
[1773702249978,2.082,96.014,95.945,10.43928656]
[1773702250173,2.082,96.014,95.947,10.43928656]
[1773702250386,2.083,96.004,95.949,10.43928656]
[1773702250582,2.083,96.004,95.951,10.43928656]
[1773702250779,2.083,96.004,95.953,10.43928656]
[1773702251083,2.083,96.004,95.91,9.10179842]
[1773702251084,2.083,96.004,95.955,10.46579271]
[1773702252882,2.083,96.004,95.956,32.74]
[1773702253284,2.083,96.004,95.956,43.18348826]
[1773702255089,2.083,96.004,95.957,10.44098471]
[1773702255477,2.083,95.995,95.957,10.44098471]
[1773702255886,2.083,95.995,95.958,32.74]
[1773702257093,2.083,95.984,95.959,32.74]
[1773702257589,9.10179842,96.01,95.941,10.44933042]
[1773702257783,9.10179842,96.01,95.942,10.44933042]
[1773702257987,9.10179842,96.01,95.944,10.43770214]
[1773702258190,9.10179842,96.01,95.945,10.43770214]
[1773702258488,9.10179842,96.01,95.946,32.74]
[1773702258684,2.083,95.982,95.947,10.43770214]
[1773702261188,2.083,95.982,95.948,32.74]
[1773702261577,2.083,95.982,95.947,10.43770214]
[1773702261578,8.76122998,96.034,95.915,10.42116091]
[1773702261783,3.82154673,95.95,95.916,32.74]
[1773702262185,3.82154673,95.97,95.917,10.42051107]
[1773702262387,18.748,96.002,95.917,10.42051107]
[1773702262690,3.82154673,96.01,95.941,10.42051107]
[1773702263084,18.743,96.026,95.941,10.42051107]
[1773702263284,43.78306751,96.092,95.916,32.74]
[1773702263285,3.82154673,96.02,95.96,3.82154673]
[1773702263589,3.82154673,96.02,95.962,10.41908618]
[1773702263892,12.63306751,96.104,95.882,1.81354373]
[1773702263893,104.157,96.004,95.883,26.78333836]
[1773702264187,104.157,96.004,95.612,44.88396863]
[1773702264188,2.085,95.909,95.854,26.78333836]
[1773702264486,2.085,95.909,95.855,32.74]
[1773702264688,18.755,95.968,95.856,26.78333836]
[1773702264892,3.82154673,95.91,95.857,32.74]
[1773702265085,3.82154673,95.92,95.857,32.74]
[1773702265482,3.82154673,95.92,95.858,26.74946302]
[1773702265691,3.82154673,95.92,95.859,32.74]
[1773702266291,10.42,95.966,95.86,30.22587615]
[1773702266493,3.82154673,95.92,95.86,30.22587615]
[1773702266887,2.085,95.9,95.86,30.22587615]
[1773702267590,2.085,95.913,95.86,30.22587615]
[1773702267790,2.085,95.913,95.86,26.40432942]
[1773702267990,2.085,95.913,95.86,30.22587615]
[1773702268287,3.82154673,95.92,95.861,32.74]
[1773702268589,3.82154673,95.92,95.862,26.51606208]
[1773702268789,8.64546769,95.977,95.861,32.74]
[1773702268790,3.82154673,95.95,95.89,30.32918336]
[1773702268989,2.084,95.925,95.89,30.32918336]
[1773702269890,3.82154673,95.95,95.89,30.32918336]
[1773702270085,3.82154673,95.95,95.89,26.50763663]
[1773702270288,2.084,95.925,95.89,26.50763663]
[1773702270486,3.82154673,95.94,95.89,26.50763663]
[1773702270887,9.10987263,95.97,95.89,26.50763663]
[1773702271685,18.75,95.992,95.89,26.50763663]
[1773702271888,9.10987263,95.97,95.89,26.50763663]
[1773702272092,9.10987263,95.97,95.891,32.74]
[1773702273585,2.084,95.926,95.891,32.74]
[1773702275186,2.084,95.926,95.892,26.58512125]
[1773702277493,9.10987263,95.97,95.892,26.58512125]
[1773702277795,9.10987263,95.97,95.89,32.74]
[1773702279288,9.10987263,95.97,95.876,26.62473235]
[1773702279289,8.64546769,95.969,95.876,26.62473235]
[1773702279493,9.10987263,95.89,95.786,183.44]
[1773702279800,9.31823551,95.904,95.787,32.74]
[1773702279994,9.10987263,95.89,95.788,32.74]
[1773702280195,9.10987263,95.89,95.77,9.10987263]
[1773702280196,2.086,95.834,95.789,32.74]
[1773702280400,18.772,95.881,95.789,32.74]
[1773702281396,9.10987263,95.87,95.79,32.74]
[1773702281701,9.10987263,95.87,95.792,34.71843788]
[1773702281901,18.774,95.868,95.793,34.68611981]
[1773702282298,9.10987263,95.87,95.793,34.68611981]
[1773702282299,8.64546769,95.867,95.793,34.68611981]
[1773702282503,8.64546769,95.866,95.788,32.74]
[1773702282700,9.10987263,95.82,95.742,42.20961981]
[1773702282903,104.314,95.86,95.742,42.20961981]
[1773702282904,9.10987263,95.84,95.742,42.20961981]
[1773702283105,8.64546769,95.839,95.742,42.20961981]
[1773702283403,9.10987263,95.84,95.742,42.20961981]
[1773702283999,9.10987263,95.84,95.743,32.74]
[1773702284205,9.10987263,95.86,95.744,42.03227804]
[1773702285108,9.10987263,95.86,95.746,42.02176852]
[1773702286712,9.10987263,95.84,95.746,42.02176852]
[1773702286902,9.10987263,95.84,95.748,42.10741439]
[1773702288006,18.777,95.856,95.748,42.10741439]
[1773702288207,9.10987263,95.86,95.748,42.10741439]
[1773702289709,9.10987263,95.86,95.75,42.08218523]
[1773702290513,9.10987263,95.86,95.752,42.07533219]
[1773702292012,9.10987263,95.86,95.754,42.02513004]
[1773702292910,9.10987263,95.85,95.754,42.02513004]
[1773702295210,9.10987263,95.85,95.756,41.98540772]
[1773702298819,18.776,95.858,95.756,41.98540772]
[1773702301606,18.776,95.858,95.758,41.9390933]
[1773702304915,8.64546769,95.863,95.758,41.9390933]
[1773702305111,8.84627909,95.871,95.771,41.8895077]
[1773702305515,32.74,95.872,95.771,41.8895077]
[1773702306825,32.74,95.898,95.771,41.8895077]
[1773702307013,8.86762381,95.897,95.771,41.8895077]
[1773702307211,10.42,95.895,95.773,41.93951483]
[1773702307415,19.28762381,95.894,95.773,41.93951483]
[1773702307711,29.189,95.894,95.773,41.93951483]
[1773702308811,38.05662381,95.894,95.773,41.93951483]
[1773702309010,8.86762381,95.893,95.791,41.81508942]
[1773702309210,8.86762381,95.897,95.811,41.81508942]
[1773702309418,9.13061137,95.92,95.813,41.81508942]
[1773702310417,9.13061137,95.92,95.81,9.13061137]
[1773702310418,18.765,95.918,95.815,41.80814582]
[1773702311015,8.86762381,95.925,95.815,41.80814582]
[1773702313422,8.86762381,95.925,95.817,41.83678828]
[1773702313720,9.13061137,95.92,95.819,41.83678828]
[1773702313921,9.13061137,95.92,95.821,41.82557186]
[1773702314617,18.765,95.918,95.821,41.82557186]
[1773702316518,8.86762381,95.925,95.82,32.74]
[1773702316519,8.86762381,95.925,95.831,41.78570408]
[1773702316718,32.74,95.932,95.831,41.78570408]
[1773702316920,8.86762381,95.931,95.831,41.78570408]
[1773702318517,9.13061137,95.92,95.831,41.78570408]
[1773702319625,8.86762381,95.921,95.831,41.78570408]
[1773702319918,8.86762381,95.926,95.831,41.78570408]
[1773702320122,8.86762381,95.931,95.831,41.78570408]
[1773702320318,8.86762381,95.93,95.831,41.78570408]
[1773702320517,32.74,95.932,95.831,41.78570408]
[1773702320518,8.86762381,95.931,95.831,41.78570408]
[1773702322215,10.42,95.93,95.831,41.78570408]
[1773702324217,8.86762381,95.931,95.831,41.78570408]
[1773702324523,8.86762381,95.931,95.841,41.76727933]
[1773702325019,32.74,95.932,95.841,41.76727933]
[1773702325219,9.13061137,95.96,95.841,41.76727933]
[1773702325521,43.16,95.959,95.841,41.76727933]
[1773702325719,10.42,95.957,95.86,9.13061137]
[1773702325924,10.42,95.957,95.862,41.73856403]
[1773702326515,8.34578973,95.966,95.862,41.73856403]
[1773702326720,8.34578973,95.966,95.861,32.74]
[1773702326721,9.13061137,95.99,95.881,41.73856403]
[1773702326921,41.87061137,95.99,95.881,41.73856403]
[1773702327122,8.33596513,95.989,95.881,41.73856403]
[1773702331924,32.74,95.99,95.881,41.73856403]
[1773702332432,9.31823551,96.02,95.881,41.73856403]
[1773702332625,9.13061137,96.0,95.901,41.76248243]
[1773702332928,32.74,95.999,95.903,41.7650186]
[1773702334426,18.741,96.04,95.903,41.7650186]
[1773702334632,9.13061137,96.01,95.903,41.7650186]
[1773702335336,8.3037735,96.023,95.903,41.7650186]
[1773702335634,9.13061137,96.01,95.903,41.7650186]
[1773702335830,9.13061137,96.02,95.903,41.7650186]
[1773702336729,9.13061137,96.0,95.903,41.7650186]
[1773702337737,10.42,95.999,95.903,41.7650186]
[1773702338733,9.13061137,96.0,95.903,41.7650186]
[1773702339832,10.42,95.999,95.903,41.7650186]
[1773702342434,9.13061137,96.0,95.903,41.7650186]
[1773702343433,18.749,95.998,95.903,41.7650186]
[1773702343631,9.13061137,95.98,95.903,41.7650186]
[1773702343837,9.13061137,95.98,95.904,41.83983967]
[1773702344738,3.82475076,95.96,95.904,41.83983967]
[1773702346134,32.74,95.984,95.904,41.83983967]
[1773702346135,3.82475076,95.97,95.904,41.83983967]
[1773702348140,3.82475076,95.96,95.904,41.83983967]
[1773702349546,3.82475076,95.97,95.911,41.8011217]
[1773702349943,3.82475076,95.95,95.911,41.8011217]
[1773702350348,10.42,96.008,95.911,41.8011217]
[1773702350349,3.82475076,95.96,95.911,41.8011217]
[1773702352743,3.82475076,95.97,95.911,41.8011217]
[1773702352948,3.82475076,95.98,95.911,41.8011217]
[1773702353247,3.82475076,95.98,95.921,41.78910991]
[1773702354045,3.82475076,96.0,95.931,41.8205634]
[1773702354244,3.82475076,96.0,95.93,3.82475076]
[1773702354245,3.82475076,96.0,95.933,41.8205634]
[1773702356958,3.82475076,96.0,95.941,41.79278419]
[1773702359455,8.21817192,96.011,95.941,41.79278419]
[1773702359655,3.82475076,96.0,95.941,41.79278419]
[1773702360657,3.82475076,96.0,95.84,31.33]
[1773702360658,3.82475076,95.97,95.935,32.76]
[1773702360856,3.82475076,95.97,95.919,41.77686238]
[1773702360857,3.82463037,95.96,95.919,41.77686238]
[1773702361556,3.82463037,95.98,95.919,41.77686238]
[1773702361961,3.82463037,95.99,95.921,41.77722758]
[1773702362563,3.82463037,95.99,95.931,41.77722758]
[1773702364463,18.747,96.008,95.931,41.77722758]
[1773702364657,3.82463037,95.99,95.931,41.77722758]
[1773702366163,3.82463037,95.99,95.92,3.82463037]
[1773702366164,3.82463037,95.99,95.933,41.86216168]
[1773702366859,3.82463037,95.97,95.911,41.86006134]
[1773702367066,3.82463037,95.96,95.911,41.86006134]
[1773702367660,3.82463037,95.94,95.911,41.86006134]
[1773702367965,3.82463037,95.95,95.911,41.86006134]
[1773702369364,3.82463037,95.96,95.911,41.86006134]
[1773702371066,3.82463037,95.97,95.911,41.86006134]
[1773702372668,3.82463037,95.96,95.911,41.86006134]
[1773702383365,3.82463037,95.94,95.911,41.86006134]
[1773702383570,3.82463037,95.95,95.911,41.86006134]
[1773702383972,3.82463037,95.96,95.911,41.86006134]
[1773702385770,8.21817192,95.979,95.921,41.95028335]
[1773702385970,8.21817192,95.978,95.921,41.95028335]
[1773702386174,3.82463037,95.97,95.921,41.95028335]
[1773702387670,8.21817192,95.991,95.921,41.95028335]
[1773702387874,9.31823551,95.998,95.921,41.95028335]
[1773702387875,3.82463037,95.98,95.921,41.95028335]
[1773702388171,3.82463037,95.97,95.921,41.95028335]
[1773702388379,3.82463037,95.96,95.921,41.95028335]
[1773702389570,3.82463037,95.95,95.891,41.91911584]
[1773702389767,3.82463037,95.95,95.906,41.91911584]
[1773702390171,3.82463037,95.96,95.906,41.91911584]
[1773702391275,3.82463037,95.97,95.906,41.91911584]
[1773702392468,3.82463037,95.97,95.908,41.91371254]
[1773702392678,3.82463037,95.96,95.908,41.91371254]
[1773702392873,3.82463037,95.97,95.911,41.90266499]
[1773702393073,3.82463037,95.98,95.921,41.90266499]
[1773702393382,8.21817192,95.979,95.921,41.90266499]
[1773702393978,3.82463037,95.97,95.921,41.90266499]
[1773702394787,3.82463037,95.98,95.921,41.90266499]
[1773702395980,8.2007611,95.979,95.921,41.90266499]
[1773702396182,8.2007611,95.978,95.921,41.90266499]
[1773702396384,8.2007611,95.977,95.921,41.90266499]
[1773702396587,8.2007611,95.976,95.921,41.90266499]
[1773702396775,9.58927454,95.984,95.921,41.90266499]
[1773702396776,3.82463037,95.97,95.921,41.90266499]
[1773702396980,8.2007611,95.969,95.921,41.90266499]
[1773702397684,3.82463037,95.96,95.921,41.90266499]
[1773702398286,3.82463037,95.97,95.921,41.90266499]
[1773702398487,8.2007611,95.969,95.921,41.90266499]
[1773702399289,8.2007611,95.968,95.921,41.90266499]
[1773702399488,8.2007611,95.969,95.921,41.90266499]
[1773702399688,8.2007611,95.968,95.921,41.90266499]
[1773702399888,8.2007611,95.969,95.921,41.90266499]
[1773702400191,8.2007611,95.968,95.921,41.90266499]
[1773702400484,8.2007611,95.967,95.921,41.90266499]
[1773702400683,8.2007611,95.969,95.921,41.90266499]
[1773702400889,8.2007611,95.968,95.921,41.90266499]
[1773702401084,8.2007611,95.967,95.921,41.90266499]
[1773702401290,8.2007611,95.966,95.921,41.90266499]
[1773702401486,8.2007611,95.969,95.921,41.90266499]
[1773702401787,8.2007611,95.968,95.921,41.90266499]
[1773702401986,8.2007611,95.967,95.921,41.90266499]
[1773702402185,8.2007611,95.966,95.921,41.90266499]
[1773702402386,8.2007611,95.965,95.921,41.90266499]
[1773702402582,12.02539147,95.98,95.921,41.90266499]
[1773702402889,8.2007611,95.979,95.921,41.90266499]
[1773702403086,8.2007611,95.978,95.921,41.90266499]
[1773702403290,3.82463037,95.99,95.931,41.75983429]
[1773702403583,8.2007611,95.989,95.931,41.75983429]
[1773702403784,3.82463037,95.98,95.931,41.75983429]
[1773702404084,8.2007611,95.979,95.931,41.75983429]
[1773702404291,8.2007611,95.978,95.931,41.75983429]
[1773702404490,8.2007611,95.977,95.931,41.75983429]
[1773702404688,8.2007611,95.979,95.931,41.75983429]
[1773702404880,8.2007611,95.978,95.931,41.75983429]
[1773702405085,8.2007611,95.979,95.931,41.75983429]
[1773702405289,8.2007611,95.978,95.931,41.75983429]
[1773702405491,8.2007611,95.977,95.931,41.75983429]
[1773702405690,8.2007611,95.979,95.931,41.75983429]
[1773702405891,8.2007611,95.978,95.931,41.75983429]
[1773702406088,8.2007611,95.977,95.931,41.75983429]
[1773702406288,8.2007611,95.979,95.931,41.75983429]
[1773702406488,8.2007611,95.978,95.931,41.75983429]
[1773702406689,8.2007611,95.977,95.931,41.75983429]
[1773702406990,3.82463037,95.98,95.931,41.75983429]
[1773702409697,3.82463037,95.96,95.931,41.75983429]
[1773702409993,3.82463037,95.95,95.916,74.48483455]
[1773702410191,3.82463037,95.95,95.916,41.72483455]
[1773702411997,10.42,95.976,95.906,32.76]
[1773702411998,3.82463037,95.94,95.906,32.76]
[1773702412894,3.82463037,95.94,95.906,74.5162897]
[1773702413293,8.2007611,95.939,95.892,41.7562897]
[1773702413492,3.82463037,95.95,95.892,41.7562897]
[1773702413797,3.82463037,95.94,95.892,41.7562897]
[1773702417301,3.82463037,95.93,95.892,41.7562897]
[1773702417497,3.82463037,95.93,95.812,31.33]
[1773702417498,8.2007611,95.929,95.838,41.74852851]
[1773702417698,3.82463037,95.89,95.838,41.74852851]
[1773702418398,18.95741598,95.952,95.77,183.42]
[1773702418399,3.82463037,95.87,95.819,49.64423758]
[1773702420798,32.78,95.902,95.779,49.56841786]
[1773702420799,3.82463037,95.83,95.779,49.56841786]
[1773702420994,3.82463037,95.82,95.779,49.56841786]
[1773702421198,3.82463037,95.84,95.779,49.56841786]
[1773702421598,3.82463037,95.83,95.779,49.56841786]
[1773702421800,3.82463037,95.82,95.779,49.56841786]
[1773702422494,3.82463037,95.83,95.779,49.56841786]
[1773702422896,3.8351946,95.83,95.779,49.56841786]
[1773702425008,3.8351946,95.83,95.74,11.07099069]
[1773702425009,3.8351946,95.79,95.751,49.47818018]
[1773702425306,3.8351946,95.8,95.74,64.38436547]
[1773702425609,18.777,95.854,95.74,64.38436547]
[1773702425610,3.8351946,95.81,95.751,49.47818018]
[1773702426409,3.8351946,95.8,95.751,49.47818018]
[1773702427407,123.128,95.83,95.74,0.00099069]
[1773702427610,3.8351946,95.76,95.704,49.36754412]
[1773702428010,3.8351946,95.77,95.711,49.39133652]
[1773702428213,3.8351946,95.76,95.711,49.39133652]
[1773702428408,3.8351946,95.77,95.711,49.39133652]
[1773702428813,9.14186101,95.8,95.711,49.39133652]
[1773702429417,32.8,95.811,95.711,49.39133652]
[1773702432016,254.81604567,95.819,95.711,49.39133652]
[1773702432217,254.81604567,95.819,95.731,49.97177274]
[1773702436620,254.81604567,95.819,95.733,50.01493552]
[1773702438014,32.8,95.843,95.741,49.95664573]
[1773702438920,9.14186101,95.84,95.741,49.95664573]
[1773702449026,3.83610125,95.82,95.761,49.95506916]
[1773702450229,3.83610125,95.85,95.791,49.95424416]
[1773702450529,3.83610125,95.86,95.801,49.95424416]
[1773702450929,36.61610125,95.87,95.801,49.95424416]
[1773702451123,3.83610125,95.85,95.801,49.95424416]
[1773702451327,3.83610125,95.86,95.801,49.95424416]
[1773702451926,36.61610125,95.87,95.811,49.98708436]
[1773702452923,3.83610125,95.86,95.811,49.98708436]
[1773702453521,3.83610125,95.85,95.811,49.98708436]
[1773702454028,3.83610125,95.86,95.811,49.98708436]
[1773702454425,3.83610125,95.86,95.692,31.33]
[1773702454426,3.83610125,95.82,95.753,49.94283503]
[1773702454627,3.83610125,95.82,95.761,49.94283503]
[1773702454924,3.83610125,95.83,95.771,49.89433113]
[1773702455527,3.83610125,95.84,95.771,49.89433113]
[1773702455723,8.03333007,95.869,95.771,49.89433113]
[1773702455930,1.81623179,95.886,95.791,49.88125143]
[1773702455931,3.83610125,95.85,95.791,49.88125143]
[1773702456129,3.83610125,95.86,95.801,49.88125143]
[1773702456431,3.83610125,95.88,95.811,49.88125143]
[1773702456627,3.83610125,95.87,95.811,49.88125143]
[1773702457731,3.83610125,95.88,95.821,49.879048]
[1773702458532,3.83610125,95.87,95.821,49.879048]
[1773702459030,3.83610125,95.88,95.821,49.879048]
[1773702460425,3.83610125,95.87,95.821,49.879048]
[1773702460834,104.372,95.807,95.682,49.99376197]
[1773702461027,104.34,95.836,95.545,104.656]
[1773702461028,3.83610125,95.69,95.641,49.99376197]
[1773702462028,8.0602491,95.724,95.641,49.99376197]
[1773702462029,3.83610125,95.7,95.641,49.99376197]
[1773702462724,9.15648117,95.72,95.641,49.99376197]
[1773702462930,9.34326689,95.759,95.641,49.99376197]
[1773702463128,9.15648117,95.75,95.641,49.99376197]
[1773702463330,9.15648117,95.73,95.641,49.99376197]
[1773702466232,8.06278799,95.757,95.641,49.99376197]
[1773702466427,9.15648117,95.73,95.641,49.99376197]
[1773702468028,32.8,95.729,95.641,49.99376197]
[1773702471637,9.15648117,95.71,95.641,49.99376197]
[1773702473234,9.15648117,95.71,95.601,50.02867258]
[1773702476040,32.8,95.713,95.621,50.00508473]
[1773702481046,32.8,95.741,95.621,50.00508473]
[1773702481245,10.42,95.749,95.621,50.00508473]
[1773702481644,9.15648117,95.73,95.621,50.00508473]
[1773702481839,32.8,95.739,95.621,50.00508473]
[1773702482044,32.8,95.739,95.623,49.98364906]
[1773702482244,10.42,95.738,95.625,49.98364906]
[1773702482843,10.42,95.738,95.641,49.96953349]
[1773702483041,9.15648117,95.71,95.641,49.96953349]
[1773702484347,10.42,95.709,95.641,49.96953349]
[1773702485344,10.42,95.719,95.641,49.96953349]
[1773702485645,9.15714608,95.7,95.62,49.80539833]
[1773702486650,10.42,95.719,95.62,49.80539833]
[1773702490850,10.42,95.699,95.62,49.80539833]
[1773702491550,10.42,95.719,95.62,49.80539833]
[1773702492052,10.42,95.699,95.622,49.8755256]
[1773702492250,9.15714608,95.73,95.622,49.8755256]
[1773702492651,9.15714608,95.71,95.622,49.8755256]
[1773702495355,10.42,95.709,95.622,49.8755256]
[1773702497448,10.42,95.719,95.622,49.8755256]
[1773702500749,10.42,95.699,95.622,49.8755256]
[1773702501953,10.42,95.709,95.622,49.8755256]
[1773702504150,10.42,95.702,95.622,49.8755256]
[1773702505256,9.34326689,95.693,95.622,49.8755256]
[1773702505457,8.00468296,95.692,95.622,49.8755256]
[1773702505658,8.00468296,95.691,95.622,49.8755256]
[1773702505857,8.00468296,95.69,95.622,49.8755256]
[1773702506157,18.42468296,95.689,95.622,49.8755256]
[1773702506359,8.00468296,95.688,95.622,49.8755256]
[1773702506555,8.00468296,95.687,95.622,49.8755256]
[1773702506750,8.00468296,95.686,95.622,49.8755256]
[1773702506958,8.00468296,95.685,95.622,49.8755256]
[1773702507158,8.00468296,95.684,95.622,49.8755256]
[1773702507356,8.00468296,95.683,95.622,49.8755256]
[1773702507550,8.00468296,95.682,95.622,49.8755256]
[1773702507759,8.00468296,95.681,95.622,49.8755256]
[1773702508057,10.42,95.688,95.622,49.8755256]
[1773702508058,8.00468296,95.68,95.622,49.8755256]
[1773702508257,8.00468296,95.679,95.622,49.8755256]
[1773702508456,8.00468296,95.678,95.622,49.8755256]
[1773702508657,8.00468296,95.677,95.622,49.8755256]
[1773702508858,10.42,95.693,95.622,49.8755256]
[1773702509054,10.42,95.691,95.622,49.8755256]
[1773702509255,10.42,95.689,95.622,49.8755256]
[1773702509456,10.42,95.687,95.622,49.8755256]
[1773702509657,7.92749226,95.686,95.622,49.8755256]
[1773702509858,7.92749226,95.685,95.622,49.8755256]
[1773702510159,7.92749226,95.684,95.622,49.8755256]
[1773702510361,7.92749226,95.683,95.622,49.8755256]
[1773702510556,7.92749226,95.682,95.622,49.8755256]
[1773702510762,10.42,95.68,95.622,49.8755256]
[1773702510962,7.92749226,95.679,95.622,49.8755256]
[1773702511164,7.92749226,95.678,95.622,49.8755256]
[1773702511364,7.92749226,95.689,95.622,49.8755256]
[1773702511564,7.92749226,95.688,95.622,49.8755256]
[1773702511862,7.92749226,95.687,95.622,49.8755256]
[1773702512064,7.92749226,95.686,95.622,49.8755256]
[1773702512265,7.92749226,95.685,95.622,49.8755256]
[1773702512564,7.92749226,95.684,95.622,49.8755256]
[1773702512764,7.92749226,95.683,95.622,49.8755256]
[1773702512967,7.92749226,95.682,95.622,49.8755256]
[1773702513166,10.42,95.698,95.622,49.8755256]
[1773702513368,10.42,95.696,95.622,49.8755256]
[1773702513559,10.42,95.694,95.622,49.8755256]
[1773702513764,10.42,95.692,95.622,49.8755256]
[1773702513964,10.42,95.69,95.622,49.8755256]
[1773702514266,18.34749226,95.689,95.622,49.8755256]
[1773702514465,7.92749226,95.688,95.622,49.8755256]
[1773702514666,7.92749226,95.687,95.622,49.8755256]
[1773702514866,7.56928931,95.714,95.622,49.8755256]
[1773702514867,7.92749226,95.702,95.622,49.8755256]
[1773702515168,7.92749226,95.701,95.622,49.8755256]
[1773702515367,7.92749226,95.7,95.622,49.8755256]
[1773702515665,7.92749226,95.699,95.622,49.8755256]
[1773702515863,18.34749226,95.698,95.622,49.8755256]
[1773702516061,7.92749226,95.697,95.622,49.8755256]
[1773702516263,7.92749226,95.696,95.622,49.8755256]
[1773702516462,7.92749226,95.711,95.622,49.8755256]
[1773702516764,3.84585192,95.7,95.631,49.7489239]
[1773702517063,3.84585192,95.7,95.633,49.74008841]
[1773702518166,3.84585192,95.7,95.641,49.75937461]
[1773702518357,17.11608245,95.724,95.632,32.8]
[1773702518358,7.92749226,95.723,95.661,49.75937461]
[1773702518561,3.84585192,95.72,95.661,49.75937461]
[1773702518758,12.5545045,95.668,95.574,41.72934001]
[1773702518962,3.84585192,95.64,95.574,41.72934001]
[1773702519163,3.84585192,95.66,95.59,3.84585192]
[1773702520268,3.84585192,95.65,95.59,3.84585192]
[1773702520862,9.16816279,95.65,95.591,45.74513142]
[1773702522173,10.42,95.649,95.591,45.74513142]
[1773702522568,10.42,95.649,95.549,32.8]
[1773702522569,10.42,95.649,95.574,45.85540631]
[1773702523074,10.42,95.647,95.574,45.85540631]
[1773702523274,18.34749226,95.647,95.574,45.85540631]
[1773702524374,10.42,95.629,95.574,45.85540631]
[1773702524780,9.16816279,95.63,95.574,45.85540631]
[1773702524981,32.82,95.643,95.574,45.85540631]
[1773702525176,7.92749226,95.642,95.574,45.85540631]
[1773702525975,10.42,95.641,95.574,45.85540631]